Cogmind - Beta 9.2 @@@ ROGUE MODE // 2019.11.29 @ 02:47:06 Player: GammaGradiation Result: Destroyed by Y-54 Guardian with Flak Gun Performance ------------- Evolutions (3) 1500 Regions Visited (4) 800 Robots Destroyed (82) 410 Value Destroyed (2308) 2308 Prototype IDs (5) 100 Alien Tech Used (0) 0 Bonus (62) 62 TOTAL SCORE: 5180 Bonus ------- High Alert Combat Kills 62 Cogmind --------- Core Integrity 0/700 Matter 280/300 Energy 70/100 System Corruption 3% Temperature Cool (12) Movement Rolling (110) Ox3 Location -7/Factory Parts ------- > --- POWER (1) -------- (None) > --- PROPULSION (3) --- Wheel Wheel > --- UTILITY (6) ------ Large Storage Unit Large Storage Unit Advanced Signal Interpreter Microactuators > --- WEAPON (3) ------- Axe > --- INVENTORY (16) --- Light Ion Engine Heavy Armor Plating Hardened Light Armor Plating Hardened Medium Armor Plating Hardened Medium Armor Plating Hardened Medium Armor Plating Improved Light Armor Plating Autogun Autogun Autogun Flak Cannon Shock Bomb Launcher Proton Missile Launcher Peak State ------------ > --- POWER ------------ Cooled Deuterium Engine > --- PROPULSION ------- Aluminum Leg Aluminum Leg Aluminum Leg > --- UTILITY ---------- Large Storage Unit Large Storage Unit Advanced Signal Interpreter Terrain Scanner Hardened Light Armor Plating Layered Light Armor Plating > --- WEAPON ----------- Precision Shock Rifle Improved EM Pulse Cannon Axe > --- INVENTORY -------- Light Ion Engine Improved Ion Engine Aluminum Leg Heavy Armor Plating Hardened Medium Armor Plating Hardened Medium Armor Plating Hardened Medium Armor Plating Shock Bomb Launcher Proton Missile Launcher [Rating: 34] Favorites ----------- Power Improved Ion Engine Engine Improved Ion Engine Power Core Light Nuclear Core Propulsion Aluminum Leg Leg Aluminum Leg Wheel Wheel Flight Unit VTOL Module Utility Large Storage Unit Device Terrain Scanner Storage Large Storage Unit Processor Advanced Signal Interpreter Protection Hardened Light Armor Plating Weapon Heavy Assault Rifle Energy Gun Spread Laser Energy Cannon Improved EM Pulse Cannon Ballistic Gun Heavy Assault Rifle Launcher Proton Missile Launcher Impact Weapon Hammer Slashing Weapon Axe Build | -11 -10 -9 -8 -7 ------- Run | Scr Mat Mat Mat Fac Slots Evolved 6 | . . 2 2 2 Power . | . . . . . Propulsion 1 | . . 1 . . Utility 4 | . . . 2 2 Weapon 1 | . . 1 . . Parts Attached 94 | 8 6 20 23 37 Power 9 | 1 1 2 1 4 Engine 8 | 1 1 2 1 3 Core 1 | . . . . 1 Reactor . | . . . . . Propulsion 24 | 3 1 4 6 10 Treads . | . . . . . Leg 16 | 2 1 4 6 3 Wheel 4 | 1 . . . 3 Hover . | . . . . . Flight 4 | . . . . 4 Utility 17 | 1 2 . 5 9 Device 6 | . . . 3 3 Storage 3 | 1 2 . . . Processor 3 | . . . . 3 Hackware . | . . . . . Protection 5 | . . . 2 3 Artifact . | . . . . . Weapon 44 | 3 2 14 11 14 Energy Gun 18 | 1 1 7 4 5 Energy Cannon 2 | . . . . 2 Ballistic Gun 16 | 2 1 6 5 2 Ballistic Cannon . | . . . . . Launcher 5 | . . . 2 3 Special Weapon . | . . . . . Impact Weapon 1 | . . 1 . . Slashing Weapon 2 | . . . . 2 Piercing Weapon . | . . . . . Special Melee Weapon . | . . . . . Unidentified Prototypes 3 | . . . . 3 Parts Lost 52 | . 1 11 15 25 Power 6 | . . 1 1 4 Propulsion 18 | . . 2 6 10 Utility 5 | . . . . 5 Weapon 23 | . 1 8 8 6 Highest Loss Streak 8 | . 1 4 5 8 Average Slot Usage (%) 86 | . 99 90 91 75 Engine 8 | . 14 9 8 5 Leg 23 | . 28 28 26 15 Flight 1 | . . . . 2 Device 3 | . . . 7 5 Storage 19 | . 27 22 18 15 Processor 2 | . . . . 7 Protection 2 | . . . 5 3 Energy Gun 9 | . 7 10 9 8 Ballistic Gun 12 | . 20 17 14 2 Naked Turns . | . . . . . Heaviest Build 67 | 10 41 48 54 67 Greatest Support 36 | 20 20 36 36 33 Greatest Overweight (x) 15 | . 3 2 3 15 Average Overweight (x) 1 | . 1 1 1 1 Largest Inventory Capacity 16 | 6 16 16 16 16 Average Capacity 15 | 5 15 16 16 16 Most Carried 16 | 4 16 16 16 16 Average Carried 13 | 2 12 15 13 13 Final Capacity 16 | 6 16 16 16 16 Final Carried 16 | 4 16 16 16 14 Class Distribution -------------------- 59% | Mutant 18% | Scavenger-Mutant 8% | Scavenger-Tank 7% | Gunner 3% | Skirmisher Dominant Class ---------------- Mutant | -10/Materials Mutant | -9/Materials Scavenger-Mutant | -8/Materials Mutant | -7/Factory Resources | -11 -10 -9 -8 -7 ----------- Run | Scr Mat Mat Mat Fac Matter Collected 1771 | 245 186 513 530 297 Remotely . | . . . . . Salvage Created 2753 | . 259 1013 855 626 Parts 177 | . 19 64 57 37 Haulers Intercepted 2 | . 1 1 . . Recyclers Shooed . | . . . . . Parts Field Recycled . | . . . . . Retrieved Matter . | . . . . . Parts Self-Destructed . | . . . . . Prevented . | . . . . . Kills | -11 -10 -9 -8 -7 ------- Run | Scr Mat Mat Mat Fac Combat Hostiles Destroyed 69 | . 7 25 24 13 Melee 4 | . . . . 4 Guns 55 | . 7 25 21 2 AOE 9 | . . . 3 6 Classes Destroyed 12 | . 4 4 2 2 Worker 3 | . . 2 . 1 Builder 3 | . . . . 3 Hauler 2 | . 1 1 . . Recycler 2 | . . . 2 . Mechanic 1 | . . . 1 . Watcher 2 | . 1 . . 1 Swarmer 29 | . 3 7 13 6 Grunt 25 | . 4 9 9 3 Brawler 2 | . . 1 . 1 Duelist 2 | . . 1 . 1 Sentry 10 | . . 7 2 1 Programmer 1 | . . . . 1 Best Kill Streak 7 | . 4 6 5 7 Combat Bots Only 5 | . 4 5 5 3 Max Kills in Single Turn 5 | . 1 2 2 5 Gunslinging 1 | . . . 1 . Exploded 3 | . . . 2 3 Melee 1 | . . . . 1 Uniques/NPCs Destroyed . | . . . . . Combat | -11 -10 -9 -8 -7 -------- Run | Scr Mat Mat Mat Fac Damage Taken 6212 | . 410 1347 1595 2860 Core 1263 | . 123 238 195 707 Absorbed by Shields . | . . . . . Core Remaining (%) 63 | 100 50 40 64 . Volleys Fired 211 | . 29 78 74 30 Largest 3 | . 2 3 3 3 Hottest 163 | . 60 108 144 163 Shots Fired 464 | . 55 177 187 45 Gun 446 | . 55 177 183 31 Cannon 6 | . . . . 6 Launcher 12 | . . . 4 8 Special . | . . . . . Kinetic 277 | . 39 119 110 9 Thermal 139 | . 11 41 73 14 Explosive 4 | . . . 4 . Electromagnetic 44 | . 5 17 . 22 Robot Hit Streak 14 | . 8 14 10 12 Robot Miss Streak 7 | . 5 7 5 3 Penetration Max . | . . . . . Secondary Targets 10 | . . 4 6 . Max Gunslinging Chain 1 | . . 1 1 . Shots Hit Robots 281 | . 29 111 98 43 Core Hits 157 | . 16 56 43 42 Critical Hits 2 | . . 1 1 . Critical Kills 2 | . . 1 1 . Critical Parts Destroyed . | . . . . . Melee Attacks 25 | . . 14 . 11 Impact 14 | . . 14 . . Slashing 11 | . . . . 11 Piercing . | . . . . . Sneak Attacks 1 | . . . . 1 Combat Hostiles . | . . . . . Follow-up Attacks . | . . . . . Damage Inflicted 5157 | . 369 1319 1608 1861 Guns 3408 | . 366 1319 1262 461 Cannons 71 | . . . . 71 Explosions 1341 | . . . 346 995 Melee 334 | . . . . 334 Ramming 3 | . 3 . . . Kinetic 1783 | . 266 707 685 125 Thermal 1585 | . 76 414 577 518 Explosive 346 | . . . 346 . Electromagnetic 1106 | . 24 198 . 884 Impact . | . . . . . Slashing 334 | . . . . 334 Piercing . | . . . . . Highest Corruption 3 | . . 1 . 3 Average Corruption 1 | . . 1 . 1 Corruption Purged . | . . . . . Effects 14 | . . 2 . 12 Message Errors 8 | . . . . 8 Heat Flow Errors 1 | . . . . 1 Energy Discharges 4 | . . 2 . 2 Data Loss (minor) 1 | . . . . 1 Overload Shots . | . . . . . Overflow Damage 73 | . . . 36 37 Projectiles . | . . . . . Explosions 68 | . . . 36 32 Melee 5 | . . . . 5 Knockbacks . | . . . . . Impact . | . . . . . Kinetic . | . . . . . Secondary . | . . . . . Self-Inflicted Damage 227 | . 1 . 39 187 Shots 7 | . . . 1 6 Rammed 1 | . 1 . . . Targets Rammed 2 | . 2 . . . Kicked 1 | . 1 . . . Crushed . | . . . . . Highest Temperature 336 | . 18 265 336 165 Average Temperature 82 | . 10 74 110 49 Received Heat Transfer 1362 | . 144 357 432 429 Effects 1 | . . . 1 . Interference 1 | . . . 1 . Siege Activations . | . . . . . Robots Corrupted 1 | . . . . 1 Combat Hostiles 1 | . . . . 1 Parts Fried 2 | . . . . 2 Impact Corruptions . | . . . . . Robots Melted . | . . . . . Combat Hostiles . | . . . . . Parts Melted 2 | . . . 1 1 Heat Transferred 2995 | . 175 762 1443 615 Parts Sabotaged . | . . . . . Parts Stolen . | . . . . . Parts Stripped . | . . . . . Power Chain Reactions 4 | . . . . 4 Missiles Intercepted . | . . . . . Alert | -11 -10 -9 -8 -7 ------- Run | Scr Mat Mat Mat Fac Peak Influence 530 | . 241 434 530 177 Average Influence 147 | . 113 166 310 64 Maximum Alert Level 2 | . 1 2 2 . Low Security (%) 72 | 100 75 71 18 100 Level 1 22 | . 24 26 57 . Level 2 4 | . . 1 24 . Level 3 . | . . . . . Level 4 . | . . . . . Level 5 . | . . . . . High Security . | . . . . . Max Security . | . . . . . Squads Dispatched 11 | . 1 2 3 5 Investigation . | . . . . . Extermination 2 | . . . . 2 Reinforcement 6 | . 1 2 3 . Assault . | . . . . . Garrison 3 | . . . . 3 Intercept . | . . . . . Construction Impeded 1 | . . . 1 . Haulers Reinforced . | . . . . . Stealth | -11 -10 -9 -8 -7 --------- Run | Scr Mat Mat Mat Fac Distress Signals 10 | . 2 4 4 . Communications Jammed . | . . . . . Distress Signals . | . . . . . Times Spotted 127 | . 19 39 39 30 Peak Tracking Total 8 | . 7 5 7 8 Tactical Retreats 6 | . . 1 2 3 Traps | -11 -10 -9 -8 -7 ------- Run | Scr Mat Mat Mat Fac Traps Triggered 4 | . . 1 . 3 Indirectly . | . . . . . Trap Hack Attempts . | . . . . . Triggered . | . . . . . Disarmed . | . . . . . Reprogrammed 5 | . . 5 . . Reused . | . . . . . Traps Extracted . | . . . . . Installed . | . . . . . Triggered . | . . . . . Machines | -11 -10 -9 -8 -7 ---------- Run | Scr Mat Mat Mat Fac Machines Disabled 8 | . 1 1 3 3 Max in Single Turn 1 | . 1 1 1 1 Machines Sabotaged . | . . . . . Garrisons Compromised . | . . . . . Overloaded Fab Kills . | . . . . . Fab Network Shutdowns . | . . . . . Hacking | -11 -10 -9 -8 -7 --------- Run | Scr Mat Mat Mat Fac Machines Accessed 19 | . 2 5 6 6 Terminals 17 | . 2 5 5 5 Fabricators . | . . . . . Repair Stations . | . . . . . Recycling Units 1 | . . . 1 . Scanalyzers 1 | . . . . 1 Garrison Access . | . . . . . Total Hacks 55 | . 5 15 18 17 Successful 36 | . 4 10 11 11 Failed 19 | . 1 5 7 6 Catastrophic 2 | . . . . 2 Database Lockouts . | . . . . . Manual 33 | . 4 7 15 7 Terminals 49 | . 5 15 16 13 Fabricators . | . . . . . Repair Stations . | . . . . . Recycling Units 2 | . . . 2 . Scanalyzers 4 | . . . . 4 Garrison Access . | . . . . . Terminal Hacks 17 | . 2 7 4 4 Record 1 | . . . . 1 Part Schematic 3 | . 1 1 1 . Robot Analysis 1 | . 1 . . . Prototype ID Bank 1 | . . 1 . . Branch Access Points 1 | . . . . 1 Terminal Index 1 | . . 1 . . Alert Level 1 | . . . 1 . Unreport Threat 1 | . . . . 1 Reprogram Traps 1 | . . 1 . . Dispatch Records 1 | . . 1 . . Security Status 1 | . . . 1 . Registered Components 1 | . . 1 . . Zone Layout 3 | . . 1 1 1 Fabricator Hacks . | . . . . . Repair Station Hacks . | . . . . . Recycling Unit Hacks . | . . . . . Scanalyzer 4 | . . . . 4 Insert Component 2 | . . . . 2 Analyze 2 | . . . . 2 Garrison Access Hacks . | . . . . . Unauthorized Hacks 39 | . 4 8 19 8 Terminals 14 | . 2 3 6 3 Track 4 | . 1 2 1 . Assimilate 1 | . . . 1 . Botnet 6 | . . . 3 3 Operators 3 | . 1 1 1 . Fabricators . | . . . . . Repair Stations . | . . . . . Recycling Units 1 | . . . 1 . Reject 1 | . . . 1 . Scanalyzers . | . . . . . Garrison Access . | . . . . . Data Cores Recovered . | . . . . . Used . | . . . . . Hacking Detections 18 | . 2 4 6 6 Full Trace Events . | . . . . . Feedback Events . | . . . . . Feedback Blocked . | . . . . . Robot Schematics Acquired . | . . . . . Robots Built . | . . . . . Matter . | . . . . . Time . | . . . . . Total Robot Build Rating . | . . . . . Part Schematics Acquired 5 | . 1 1 1 2 Parts Built . | . . . . . Matter . | . . . . . Time . | . . . . . Total Part Build Rating . | . . . . . Parts Repaired . | . . . . . Time . | . . . . . Parts Recycled . | . . . . . Recycled Matter . | . . . . . Retrieved Matter . | . . . . . Retrieved Components . | . . . . . Parts Scanalyzed 2 | . . . . 2 Part Schematics Acquired 2 | . . . . 2 Parts Damaged . | . . . . . Bothacking | -11 -10 -9 -8 -7 ------------ Run | Scr Mat Mat Mat Fac Used RIF Installer . | . . . . . Robots Hacked . | . . . . . Non-combat . | . . . . . Combat . | . . . . . Robot Hacks Applied . | . . . . . Relay Couplers Released . | . . . . . Robots Rewired . | . . . . . Allies Hacked . | . . . . . Hacks Repelled . | . . . . . Allies | -11 -10 -9 -8 -7 -------- Run | Scr Mat Mat Mat Fac Total Allies 1 | . . . 1 . Largest Group 1 | . . . 1 . Highest-Rated Group 10 | . . . 10 . Highest-Rated Ally 10 | . . . 10 . Total Orders 1 | . . . 1 . GOTO 1 | . . . 1 . Ally Attacks . | . . . . . Total Damage . | . . . . . Kills . | . . . . . Allies Corrupted . | . . . . . Allies Melted . | . . . . . Intel | -11 -10 -9 -8 -7 ------- Run | Scr Mat Mat Mat Fac Robot Analysis Total 1 | . 1 . . . Derelict Logs Recovered . | . . . . . Drone Launches . | . . . . . Drone Recoveries . | . . . . . Exploration | -11 -10 -9 -8 -7 ------------- Run | Scr Mat Mat Mat Fac Turns Passed 4364 | 74 656 1311 822 1501 Spaces Moved 2127 | 51 339 601 331 805 Core 11 | 6 . . . 5 Treads . | . . . . . Legs 1925 | 45 339 601 331 609 Wheels 172 | . . . . 172 Hover . | . . . . . Flight 19 | . . . . 19 Fastest Speed 50 | 50 120 150 150 110 Average Speed 155 | 111 157 158 151 157 Slowest Speed 800 | 120 210 180 210 800 Overloaded Moves . | . . . . . Propulsion Burnouts . | . . . . . Robots Hopped . | . . . . . Cave-ins Triggered . | . . . . . Exploration Rate (%) 33 | 4 40 64 36 21 Regions Visited 4 Branch Regions . Pre-discovered Areas . | . . . . . Known Exits Taken . | . . . . . Unknown Exits Taken 4 | 1 1 1 1 . Scrap Searched . | . . . . . Spaces Dug 3 | . . . . 3 Terrain Destroyed 47 | . . . 30 17 Melee 3 | . . . . 3 Projectile . | . . . . . AOE 44 | . . . 30 14 Actions | -11 -10 -9 -8 -7 --------- Run | Scr Mat Mat Mat Fac Total 2748 | 66 410 794 502 976 Wait 186 | . 14 53 58 61 Move 2123 | 50 338 600 330 805 Hop . | . . . . . Pick Up 68 | 4 15 18 15 16 Fast Attach 30 | 8 2 2 2 16 Attach 41 | . . 11 14 16 Detach 10 | 2 . . . 8 Swap 23 | . 4 7 7 5 Drop 29 | 2 6 11 2 8 Fire 211 | . 29 78 74 30 Melee 25 | . . 14 . 11 Ram . | . . . . . Kick 2 | . 2 . . . Crush . | . . . . . Escape Stasis . | . . . . . Rewire . | . . . . . Trap . | . . . . . Miscellaneous . | . . . . . Route ------- -11/Scrapyard -10/Materials (discovered 2 exits: *Mat / [*Min]) -9/Materials (discovered 2 exits: *Mat / [*Min]) -8/Materials -7/Factory (discovered 3 exits: *Sto / *Low x2) History --------- Turn | Location | Event 31 | -11/Scrapyard | Discovered new exit (range 16) 75 | -11/Scrapyard | Entered Materials 302 | -10/Materials | Build established: Mutant 635 | -10/Materials | Discovered new exit (range 16) 637 | -10/Materials | Discovered new exit (range 14) 731 | -10/Materials | Entered another Materials area 731 | -9/Materials | Evolved 2 slots: Propulsion x1, Weapon x1 1116 | -9/Materials | Discovered new exit (range 12) 1373 | -9/Materials | Lost 4 parts (1n3w) 1781 | -9/Materials | Lost 3 parts (1p1n1w) 1820 | -9/Materials | Core integrity fell below 50% 2031 | -9/Materials | Discovered new exit (range 8) 2042 | -9/Materials | Entered another Materials area 2042 | -8/Materials | Evolved 2 slots: Utility x2 2308 | -8/Materials | Lost 3 parts (2n1w) 2393 | -8/Materials | Lost 3 parts (2n1w) 2552 | -8/Materials | Lost 3 parts (1p2w) 2716 | -8/Materials | Lost 5 parts (2n3w) 2841 | -8/Materials | Discovered new exit (range 16) 2864 | -8/Materials | Entered Factory 2864 | -7/Factory | Evolved 2 slots: Utility x2 3068 | -7/Factory | Garrison activated, responded to threat 3138 | -7/Factory | Lost 7 parts (1n3u3w) 3788 | -7/Factory | Discovered new exit (range 16) 3842 | -7/Factory | Identified exit to Storage 3902 | -7/Factory | Identified exit to Lower Caves 3988 | -7/Factory | Core integrity fell below 50% 4016 | -7/Factory | Lost 8 parts (1p3n2u2w) 4346 | -7/Factory | Core integrity fell below 20% 4358 | -7/Factory | Lost 5 parts (1p4n) 4365 | -7/Factory | Destroyed by Y-54 Guardian with Flak Gun Last Messages --------------- 04314_ K-01 Serf collects debris. 04314_ Wheel destroyed. 04316_ U-05 Engineer lays Concrete. 04318_ K-01 Serf collects debris. 04319_ U-05 Engineer lays Concrete. 04320_ Imp. Ion Engine destroyed. 04320_ U-05 Engineer lays Concrete. 04327_ VTOL Module destroyed. 04329_ U-05 Engineer lays Concrete. 04334_ System corrupted: Energy discharge (-27). 04334_ U-05 Engineer lays Concrete. 04352_ U-05 Engineer destroyed. 04355_ K-01 Serf collects debris. 04355_ K-01 Serf destroyed. 04359_ K-01 Serf collects debris. 04361_ Acquired Wheel. 04361_ U-05 Engineer lays Concrete. 04363_ K-01 Serf collects debris. 04364_ ALERT: Rogue bot located, Programmers report to Factory Zone 6R. 04364_ Acquired Wheel. Map ----- +----------------------------------------------------+ | ??????????????????????# # """ """ #?#??#? | | ??????????????????????# # """ """ ###???? | | ??????????????????????# # """ """ #####?# | | ????????????????????? # + #?#?#?? | | ??????????????????????# # ##??#?# | | ??????????????????????# #####+##########?#?? | | ??????????????????????# #?### ############## | | ??????????????????????# ###?# | | ??????????????????????# ##??# | | ??????????????????????# ##### | | ??????????????????????# """"""""" | | ??????????????????????# | | ??????????????????????# """"""""" | | ??????????????????????# | | ??????????????????????# " "" | | ??????????????????????# "R"" | | ??????????????????????# """" | | ??????????????????????## ################## | | ???????????????????????# #???????##########+## | | ???????????????????????# k #?? ???# # | | ???????????????????????+ * +?????"# "T" # | | ???????????????????????# u=% #??????# !! # | | ???????????????????????# #??????# ! # | | ???????????????????????# ! #??????# # | | ???????????????????????#|% #??????# + | | ???????????????????????# @ #??????# """""" # | | ??????????############## #??????# """""" # | | ????????# + %!#??????# ????"""" # | | ????????# # ! #???????????"???" # | | ??????????"" "" """ # ^ #??????????????? # | | ????????????S"" """"" # ! #????????????? ? # | | ???????????""" """"" # % #??????????#????##### | | ????????# # ! #?????????????????#?# | | ?????????????######### # #?????????????????#?# | | ?????????????????????# # Y #????????????#???#??# | | ?????????????????????### #??????????????????## | | ???????????????????????# #????????#????????#?# | | ?????????????????????### ###?????????????????# | | ?????????????????????#! #?????????#?#?#???# | | ???????????????? #?????????????????# | | ??????????? #???????#?######??# | | ?????????? #?????#?#?? ?# | | ?????????? > #??????????"" " ?# | | ??????????? #?????????""" "G" # | | ??????????? #???????# """ " " # | | ??????????? #???????# ^ / | | ????????????########## #???????# # | | ?????????????????????#####+#####???????# # | | ???????????????????????????????????????# ?# | | ???????????????????????????????????????#######+#?# | +----------------------------------------------------+ Best States ------------- Heat Dissipation 44 Energy Generation 18 Energy Capacity 310 Matter Stores 300 Matter Capacity 300 Sight Range 16 Terrain Scan Range 14 Terrain Scan Density 110 Armor Coverage 300 Melee Speed Boost 20 Evasion (%) 40 Item Schematics ----------------- Hcp. Storage Unit | -10/Materials | Hacked Terrain Scanner | -9/Materials | Hacked Imp. Aluminum Leg | -8/Materials | Hacked Grenade Launcher | -7/Factory | Scanalyzed Hvy. Armor Plating | -7/Factory | Scanalyzed Robot Schematics ------------------ None Fabricated ------------ Nothing Alien Tech Used ----------------- None Achievements -------------- None Challenges ------------ None Game ------ Seed WaveBombardmentBlade Manual? 0 Play Time 00:54:48 Cumulative 52.8 hours Start 2019.11.29 @ 01:52:12 End 2019.11.29 @ 02:47:06 Sessions 1 Manual Loads 0 Difficulty Rogue Special Mode None Game No. 39 Rogue 39 Adventurer 0 Explorer 0 Win Type - Total 0 Types 0/0/0/0/0/0/0 Lore% 46 Gallery% 45 Achievement% 36 Wizard Run 0 Options --------- ASCII 1 Keyboard 1 Movement Numpad Keybinds 0 Fullscreen 1 Font 18/SmallcapsGlow Map View 76x50 Tactical HUD 1 Map Filters NONE Filters NONE Steam 0 RUN: 45f64cff-a9a0-4da7-b9fd-82e4ca5331ab